bitfinex/quotes_SOLUSD_20241126
["timestamp","ask_amount","ask_price","bid_price","bid_amount"]
[1732594152922,12.79629841,236.71,236.64,12.79629841]
[1732594153129,12.79629841,236.71,236.62,23.20889841]
[1732594153336,17.02019841,236.75,236.66,12.79629841]
[1732594153533,17.02019841,236.75,236.62,10.4126]
[1732594153534,17.01989841,236.77,236.68,12.79629841]
[1732594154829,12.79629841,236.75,236.68,12.79629841]
[1732594155338,12.79629841,236.75,236.66,17.02159841]
[1732594155832,12.79629841,236.68,236.55,10.0]
[1732594156014,12.79629841,236.72,236.63,18.90469841]
[1732594156221,12.79629841,236.72,236.65,12.79629841]
[1732594158327,12.79629841,236.72,236.64,4.2257]
[1732594158507,17.02069841,236.72,236.64,4.2257]
[1732594158709,12.79629841,236.68,236.61,12.79629841]
[1732594158912,12.79629841,236.64,236.57,23.13159841]
[1732594159106,12.79629841,236.64,236.55,32.06189841]
[1732594159721,12.79629841,236.64,236.57,12.79629841]
[1732594159923,12.79629841,236.64,236.55,27.83449841]
[1732594160134,12.79629841,236.62,236.55,27.83449841]
[1732594160336,12.79629841,236.6,236.52,6.1084]
[1732594160521,12.79629841,236.58,236.52,6.1084]
[1732594161038,12.79629841,236.64,236.49,15.0382]
[1732594161039,12.79629841,236.56,236.49,15.0382]
[1732594161351,12.79629841,236.58,236.49,27.83449841]
[1732594162140,17.02319841,236.58,236.49,27.83449841]
[1732594162317,12.79629841,236.56,236.49,12.79629841]
[1732594162524,12.79629841,236.56,236.47,17.02499841]
[1732594162753,12.79629841,236.54,236.45,18.90469841]
[1732594163452,12.79629841,236.52,236.45,18.90469841]
[1732594164127,12.79629841,236.52,236.45,6.1084]
[1732594164328,12.79629841,236.54,236.46,12.79629841]
[1732594165839,12.79629841,236.56,236.48,12.79629841]
[1732594166150,12.79629841,236.56,236.48,17.02489841]
[1732594166530,12.55561841,236.56,236.48,17.02489841]
[1732594166952,12.79629841,236.54,236.43,4.2295]
[1732594167131,12.79629841,236.54,236.46,12.79629841]
[1732594167330,12.79629841,236.54,236.41,4.2298]
[1732594167666,12.79629841,236.54,236.44,12.79629841]
[1732594168536,12.79629841,236.54,236.46,12.79629841]
[1732594168869,12.79629841,236.56,236.48,12.79629841]
[1732594169042,17.02349841,236.56,236.48,17.02479841]
[1732594169369,12.79629841,236.54,236.46,12.79629841]
[1732594169740,12.79629841,236.54,236.42,0.12549]
[1732594169741,12.79629841,236.5,236.42,17.02599841]
[1732594170053,12.79629841,236.5,236.4,32.79629841]
[1732594170859,12.79629841,236.5,236.42,12.79629841]
[1732594171412,17.02459841,236.5,236.42,12.79629841]
[1732594171541,17.02459841,236.5,236.42,17.02599841]
[1732594173463,12.79629841,236.5,236.42,17.02599841]
[1732594173868,4.2281,236.51,236.42,17.02599841]
[1732594174041,12.79629841,236.54,236.46,12.79629841]
[1732594175240,12.79629841,236.54,236.46,17.02519841]
[1732594175441,4.2275,236.55,236.48,12.79629841]
[1732594177364,12.79629841,236.49,236.41,4.2299]
[1732594177665,12.79629841,236.51,236.43,12.79629841]
[1732594178462,12.79629841,236.51,236.44,4.2294]
[1732594178671,4.228,236.52,236.45,12.79629841]
[1732594178845,17.02379841,236.55,236.47,12.79629841]
[1732594179260,17.02379841,236.55,236.39,10.5756]
[1732594179261,23.776884,236.47,236.29,10.0]
[1732594179460,12.79629841,236.45,236.36,12.79629841]
[1732594179652,12.79629841,236.47,236.38,12.79629841]
[1732594180468,12.79629841,236.45,236.36,17.02709841]
[1732594184075,12.79629841,236.45,236.38,12.79629841]
[1732594185576,12.79629841,236.45,236.38,17.02659841]
[1732594185777,17.02529841,236.47,236.38,17.02659841]
[1732594186174,12.79629841,236.45,236.38,4.2303]
[1732594186564,12.79629841,236.45,236.37,4.2306]
[1732594187086,12.79629841,236.41,236.34,17.02729841]
[1732594187978,4.2292,236.45,236.36,12.79629841]
[1732594187979,12.79629841,236.44,236.36,12.79629841]
[1732594188156,12.79629841,236.44,236.36,17.02699841]
[1732594190197,12.79629841,236.44,236.38,12.79629841]
[1732594190568,12.79629841,236.44,236.36,12.79629841]
[1732594191172,12.79629841,236.42,236.33,12.79629841]
[1732594191579,12.79629841,236.38,236.31,4.2317]
[1732594191767,12.79629841,236.36,236.29,4.2319]
[1732594191968,12.79629841,236.38,236.3,12.79629841]
[1732594192162,12.79629841,236.4,236.32,12.79629841]
[1732594192357,12.79629841,236.42,236.34,12.79629841]
[1732594192768,12.79629841,236.4,236.32,12.79629841]
[1732594193083,12.79629841,236.42,236.34,12.79629841]
[1732594194086,12.79629841,236.46,236.38,12.79629841]
[1732594194266,12.79629841,236.48,236.4,12.79629841]
[1732594195693,4.2285,236.49,236.42,12.79629841]
[1732594196677,12.79629841,236.52,236.44,12.79629841]
[1732594196875,12.79629841,236.49,236.42,17.02599841]
[1732594197794,12.79629841,236.49,236.42,4.2297]
[1732594198297,4.2279,236.53,236.4,12.79629841]
[1732594198298,12.79629841,236.48,236.4,12.79629841]
[1732594198474,12.79629841,236.48,236.41,12.79629841]
[1732594198676,12.79629841,236.46,236.39,17.02639841]
[1732594198871,12.79629841,236.46,236.39,4.2301]
[1732594199396,12.79629841,236.46,236.39,17.02639841]
[1732594199880,12.79629841,236.49,236.41,12.79629841]
[1732594200470,12.79629841,236.48,236.4,12.79629841]
[1732594201095,12.79629841,236.49,236.41,17.02619841]
[1732594201280,12.79629841,236.5,236.42,12.79629841]
[1732594201973,12.79629841,236.5,236.43,12.79629841]
[1732594202502,4.2276,236.54,236.41,4.2299]
[1732594202700,9.89093443,236.58,236.51,12.79629841]
[1732594202999,28.96589841,236.61,236.54,12.79629841]
[1732594203171,12.79629841,236.63,236.55,12.79629841]
[1732594203596,12.79629841,236.62,236.55,12.79629841]
[1732594203800,12.79629841,236.63,236.55,12.79629841]
[1732594204496,43.73991496,236.67,236.59,12.79629841]
[1732594204701,10.54861655,236.67,236.62,12.79629841]
[1732594204887,10.54861655,236.67,236.63,12.79629841]
[1732594205286,10.54861655,236.67,236.63,17.02219841]
[1732594205484,10.54861655,236.67,236.64,12.79629841]
[1732594205690,10.54861655,236.67,236.62,12.79629841]
[1732594205892,10.54861655,236.67,236.6,12.79629841]
[1732594206795,10.54861655,236.67,236.64,12.79629841]
[1732594207207,10.54861655,236.67,236.62,12.79629841]
[1732594207891,12.79629841,236.66,236.57,4.227]
[1732594208097,12.79629841,236.66,236.58,12.79629841]
[1732594208490,12.79629841,236.64,236.56,17.02349841]
[1732594208692,12.79629841,236.64,236.58,12.79629841]
[1732594208882,12.79629841,236.66,236.58,12.79629841]
[1732594209304,12.79629841,236.66,236.58,17.02309841]
[1732594209505,14.77391655,236.67,236.6,12.79629841]
[1732594209506,10.54861655,236.67,236.6,12.79629841]
[1732594209683,10.54861655,236.67,236.64,12.79629841]
[1732594210506,10.54861655,236.67,236.63,15.836]
[1732594210885,10.54861655,236.67,236.62,12.79629841]
[1732594211311,10.54861655,236.67,236.64,12.79629841]
[1732594212184,10.54861655,236.67,236.63,4.226]
[1732594212185,10.54861655,236.67,236.66,12.79629841]
[1732594213493,10.54861655,236.67,236.66,17.02169841]
[1732594215398,10.54861655,236.67,236.66,12.79629841]
[1732594215945,10.54861655,236.67,236.65,12.79629841]
[1732594217526,10.54861655,236.67,236.58,15.836]
[1732594217527,10.54861655,236.67,236.59,4.2267]
[1732594217747,10.54861655,236.67,236.63,12.79629841]
[1732594217945,10.54861655,236.67,236.65,12.79629841]
[1732594218237,4.2236,236.77,236.65,12.79629841]
[1732594218555,12.79629841,236.73,236.66,12.79629841]
[1732594218740,12.79629841,236.73,236.64,12.79629841]
[1732594219111,12.79629841,236.73,236.66,12.79629841]
[1732594219507,4.2244,236.72,236.66,12.79629841]
[1732594219825,12.79629841,236.73,236.66,12.79629841]
[1732594220518,17.02049841,236.73,236.66,12.79629841]
[1732594221010,12.79629841,236.75,236.68,12.79629841]
[1732594221335,4.2231,236.79,236.72,12.79629841]
[1732594221529,12.79629841,236.78,236.7,12.79629841]
[1732594222042,12.79629841,236.78,236.72,12.79629841]
[1732594222241,4.2229,236.81,236.68,20.0]
[1732594222454,4.2221,236.85,236.79,12.79629841]
[1732594222643,32.02079841,236.87,236.79,12.79629841]
[1732594222926,12.79629841,236.89,236.81,12.79629841]
[1732594223232,10.5522,236.92,236.84,12.79629841]
[1732594223233,4.2211,236.91,236.84,12.79629841]
[1732594223416,12.79629841,236.92,236.76,18.92609841]
[1732594223417,12.79629841,236.92,236.86,12.79629841]
[1732594224323,4.2208,236.93,236.86,12.79629841]
[1732594225028,18.14508284,236.94,236.86,12.79629841]
[1732594225224,12.79629841,236.89,236.81,12.79629841]
[1732594225422,12.79629841,236.91,236.84,12.79629841]
[1732594225771,12.79629841,236.94,236.86,12.79629841]
[1732594226066,4.2206,236.94,236.87,12.79629841]
[1732594226344,17.01689841,236.94,236.86,12.79629841]
[1732594226635,4.2206,236.94,236.88,12.79629841]
[1732594226939,17.01649841,236.96,236.88,12.79629841]
[1732594227756,12.79629841,236.97,236.9,12.79629841]
[1732594228042,12.79629841,236.97,236.88,12.79629841]
[1732594228414,12.79629841,236.95,236.88,12.79629841]
[1732594228834,12.79629841,236.91,236.82,12.79629841]
[1732594229926,4.2211,236.9,236.82,12.79629841]
[1732594230437,4.2211,236.9,236.84,12.79629841]
[1732594230740,12.79629841,236.92,236.85,12.79629841]
[1732594231756,12.79629841,236.91,236.84,12.79629841]
[1732594232068,12.79629841,236.91,236.81,12.79629841]
[1732594232069,12.79629841,236.89,236.81,12.79629841]
[1732594232953,12.79629841,236.86,236.78,12.79629841]
[1732594233263,12.79629841,236.87,236.8,12.79629841]
[1732594233439,12.79629841,236.89,236.81,12.79629841]
[1732594233635,12.79629841,236.88,236.81,12.79629841]
[1732594234041,12.79629841,236.89,236.81,12.79629841]
[1732594234563,12.79629841,236.83,236.72,4.2244]
[1732594234739,12.79629841,236.82,236.74,12.79629841]
[1732594235075,12.79629841,236.82,236.75,12.79629841]
[1732594236048,17.01899841,236.82,236.75,12.79629841]
[1732594236463,12.79629841,236.83,236.75,12.79629841]
[1732594236747,12.79629841,236.83,236.76,12.79629841]
[1732594237567,12.79629841,236.85,236.78,12.79629841]
[1732594237740,32.97909841,236.88,236.8,12.79629841]
[1732594237946,12.79629841,236.87,236.79,12.79629841]
[1732594238860,17.01809841,236.87,236.79,12.79629841]
[1732594241875,12.79629841,236.85,236.77,12.79629841]
[1732594242284,12.79629841,236.78,236.63,4.226]
[1732594242575,12.79629841,236.77,236.68,12.79629841]
[1732594243081,23.776884,236.86,236.74,12.79629841]
[1732594243285,12.79629841,236.83,236.74,12.79629841]
[1732594243766,4.2225,236.83,236.76,12.79629841]
[1732594244075,17.01879841,236.83,236.74,12.79629841]
[1732594245297,15.9611,236.89,236.76,12.79629841]
[1732594245460,12.79629841,236.85,236.76,12.79629841]
[1732594245661,4.2215,236.88,236.76,12.79629841]
[1732594245987,12.79629841,236.85,236.76,12.79629841]
[1732594246709,17.01839841,236.85,236.76,12.79629841]
[1732594247702,17.01839841,236.85,236.76,17.01989841]
[1732594248684,12.79629841,236.87,236.78,12.79629841]
[1732594248905,28.75739841,236.89,236.82,12.79629841]
[1732594249116,4.2212,236.9,236.82,12.79629841]
[1732594250207,20.2434,236.94,236.88,12.79629841]
[1732594250917,4.2206,236.94,236.88,12.79629841]
[1732594251611,4.2206,236.94,236.86,17.01809841]
[1732594252787,12.79629841,236.92,236.84,17.01839841]
[1732594257015,12.79629841,236.92,236.84,12.79629841]
[1732594257214,12.79629841,236.88,236.8,17.01909841]
[1732594259812,12.79629841,236.86,236.8,4.2228]
[1732594260105,12.79629841,236.86,236.78,12.79629841]
[1732594260309,12.79629841,236.84,236.79,20.0]
[1732594260509,12.79629841,236.86,236.79,20.0]
[1732594260711,12.79629841,236.86,236.79,24.2231]
[1732594262011,10.5518,236.93,236.81,12.79629841]
[1732594262012,12.79629841,236.89,236.81,12.79629841]
[1732594262198,17.01759841,236.89,236.81,12.79629841]
[1732594262401,12.79629841,236.87,236.79,37.01939841]
[1732594262920,12.79629841,236.87,236.79,17.01939841]
[1732594265023,17.01769841,236.89,236.81,12.79629841]
[1732594266205,17.01769841,236.89,236.81,17.01899841]
[1732594266599,12.79629841,236.87,236.79,37.01929841]
[1732594266803,12.79629841,236.85,236.79,20.0]
[1732594267032,4.2214,236.89,236.75,4.2237]
[1732594267033,12.79629841,236.83,236.75,4.2237]
[1732594267223,12.79629841,236.81,236.75,4.2237]
[1732594267715,12.79629841,236.83,236.76,12.79629841]
[1732594268001,12.79629841,236.85,236.76,12.79629841]
[1732594268310,12.79629841,236.85,236.78,12.79629841]
[1732594268910,12.79629841,236.83,236.77,4.2235]
[1732594269130,12.79629841,236.83,236.75,4.2236]
[1732594269633,12.79629841,236.83,236.76,32.79629841]
[1732594271056,12.79629841,236.83,236.76,24.2235]
[1732594271725,12.79629841,236.83,236.76,37.01979841]
[1732594272045,12.79629841,236.85,236.76,37.01979841]
[1732594272244,12.79629841,236.83,236.76,37.01979841]
[1732594272546,12.79629841,236.83,236.75,24.2238]
[1732594272929,12.79629841,236.79,236.72,32.05139841]
[1732594273121,12.79629841,236.81,236.74,12.79629841]
[1732594273324,17.01869841,236.83,236.74,12.79629841]
[1732594273728,17.01839841,236.85,236.76,12.79629841]
[1732594273922,12.79629841,236.85,236.78,12.79629841]
[1732594274243,12.79629841,236.81,236.74,12.79629841]
[1732594274732,12.79629841,236.83,236.74,12.79629841]
[1732594275045,12.79629841,236.81,236.74,12.79629841]
[1732594275230,12.79629841,236.81,236.73,4.224]
[1732594276034,12.79629841,236.81,236.74,12.79629841]
[1732594276239,12.79629841,236.81,236.74,17.02019841]
[1732594276455,4.2219,236.86,236.78,8.22748414]
[1732594276656,12.44938414,236.86,236.78,8.22748414]
[1732594278658,20.40388443,236.93,236.82,8.22748414]
[1732594278862,4.2208,236.92,236.84,8.22748414]
[1732594279667,13.57626857,236.93,236.86,8.22748414]
[1732594279831,8.22748414,236.95,236.86,8.22748414]
[1732594280037,8.22748414,236.95,236.88,8.22748414]
[1732594280258,8.22748414,236.97,236.88,8.22748414]
[1732594280557,8.22748414,236.95,236.88,8.22748414]
[1732594281453,8.22748414,236.93,236.85,12.44948414]
[1732594281634,8.22748414,236.93,236.85,4.222]
[1732594281841,8.22748414,236.93,236.85,12.44948414]
[1732594282464,12.84352169,236.93,236.85,17.06552169]
[1732594285343,12.84352169,236.91,236.85,4.222]
[1732594287277,17.06452169,236.91,236.84,16.3557]
[1732594287562,12.84352169,236.87,236.81,6.2868]
[1732594288149,12.84352169,236.87,236.81,10.5095]
[1732594288349,12.84352169,236.85,236.81,10.5095]
[1732594288864,12.84352169,236.87,236.81,10.5095]
[1732594289072,12.84352169,236.89,236.81,23.35302169]
[1732594289365,12.84352169,236.87,236.81,10.5095]
[1732594289544,12.84352169,236.85,236.78,20.4359]
[1732594290066,12.84352169,236.83,236.78,20.4359]
[1732594290748,12.84352169,236.84,236.78,20.4359]
[1732594293582,12.84352169,236.86,236.78,20.4359]
[1732594293968,12.84352169,236.86,236.79,12.84352169]
[1732594295183,12.84352169,236.86,236.8,4.2229]
[1732594296683,12.84352169,236.86,236.78,16.2126]
[1732594296873,12.84352169,236.86,236.79,4.2231]
[1732594297479,12.84352169,236.88,236.79,17.06662169]
[1732594298075,12.84352169,236.9,236.81,12.84352169]
[1732594298883,12.0431355,236.9,236.82,4.2226]
[1732594300171,12.84352169,236.88,236.81,4.2227]
[1732594303271,12.84352169,236.9,236.83,4.2224]
[1732594303475,12.84352169,236.92,236.83,17.06592169]
[1732594304064,12.84352169,236.94,236.85,12.84352169]
[1732594304267,8.21962146,236.94,236.85,8.21962146]
[1732594304490,12.44002146,236.94,236.86,4.2219]
[1732594307404,10.5483,237.01,236.87,14.33922146]
[1732594307593,8.21962146,236.97,236.89,8.21962146]
[1732594307991,12.43952146,236.97,236.89,8.21962146]
[1732594309173,12.43952146,236.97,236.89,12.44082146]
[1732594309591,8.21962146,236.95,236.89,4.2212]
[1732594310888,8.21962146,236.91,236.88,16.5242]
[1732594311993,20.0,236.96,236.88,16.5242]
[1732594312297,8.21962146,236.91,236.88,16.5242]
[1732594312506,8.21962146,236.91,236.87,6.1196]
[1732594315797,8.21962146,236.89,236.83,16.5242]
[1732594316006,8.21962146,236.86,236.83,16.5242]
[1732594316581,8.21962146,236.86,236.81,6.1196]
[1732594316782,8.21962146,236.84,236.77,20.7476]
[1732594317001,8.21962146,236.84,236.77,28.96722146]
[1732594317198,8.21962146,236.86,236.79,8.21962146]
[1732594318582,8.21962146,236.86,236.8,4.2229]
[1732594320507,12.85040574,236.87,236.79,12.85040574]
[1732594321692,12.85040574,236.89,236.79,12.85040574]
[1732594322809,12.85040574,236.89,236.8,4.2229]
[1732594323300,12.85040574,236.89,236.81,12.85040574]
[1732594323705,12.85040574,236.89,236.81,17.07310574]
[1732594323877,12.85040574,236.87,236.81,4.2227]
[1732594324081,12.85040574,236.84,236.79,4.223]
[1732594324281,12.85040574,236.84,236.77,20.7476]
[1732594325192,12.85040574,236.84,236.77,33.59800574]
[1732594327215,12.85040574,236.86,236.77,33.59800574]
[1732594327892,12.85040574,236.82,236.75,17.07400574]
[1732594328589,12.85040574,236.84,236.75,17.07400574]
[1732594328979,12.85040574,236.82,236.75,4.2236]
[1732594329196,12.85040574,236.8,236.73,10.3436]
[1732594329814,30.1771,236.87,236.73,10.3436]
[1732594329815,32.85040574,236.83,236.75,12.85040574]
[1732594330108,12.85040574,236.81,236.73,23.19400574]
[1732594330483,12.85040574,236.81,236.73,10.3436]
[1732594330680,12.85040574,236.77,236.71,20.7487]
[1732594330984,12.85040574,236.77,236.69,17.07510574]
[1732594330985,17.07390574,236.77,236.69,17.07510574]
[1732594331187,12.85040574,236.77,236.69,17.07510574]
[1732594331690,12.85040574,236.79,236.71,12.85040574]
[1732594332286,12.85040574,236.77,236.69,17.07510574]
[1732594333616,17.07390574,236.77,236.69,4.2247]
[1732594333781,12.85040574,236.75,236.69,4.2247]
[1732594333981,12.85040574,236.73,236.66,16.5242]
[1732594334187,12.85040574,236.71,236.66,16.5242]
[1732594334510,12.85040574,236.69,236.64,4.2257]
[1732594334893,12.85040574,236.69,236.62,10.3456]
[1732594335305,12.85040574,236.69,236.62,6.1196]
[1732594335528,12.85040574,236.69,236.62,10.3457]
[1732594337139,12.85040574,236.71,236.63,12.85040574]
[1732594338537,17.07500574,236.71,236.63,12.85040574]
[1732594340035,20.0,236.74,236.67,12.85040574]
[1732594340203,17.07420574,236.76,236.69,12.85040574]
[1732594340409,12.45510986,236.76,236.69,8.23130986]
[1732594340633,4.223,236.8,236.73,8.23130986]
[1732594340812,8.23130986,236.79,236.72,8.23130986]
[1732594341206,8.23130986,236.81,236.74,8.23130986]
[1732594341422,8.23130986,236.8,236.73,8.23130986]
[1732594341732,8.23130986,236.81,236.73,8.23130986]
[1732594341929,8.23130986,236.81,236.74,4.224]
[1732594342106,8.23130986,236.83,236.76,8.23130986]
[1732594342412,12.8546358,236.83,236.75,12.8546358]
[1732594342835,12.8546358,236.86,236.79,12.8546358]
[1732594343008,6.4345,236.95,236.84,12.8546358]
[1732594343213,12.8546358,236.92,236.85,12.8546358]
[1732594343726,12.8546358,236.94,236.86,12.8546358]
[1732594344103,17.0749358,236.95,236.88,12.8546358]
[1732594344409,17.0749358,236.95,236.87,12.8546358]
[1732594344917,12.8546358,236.96,236.88,12.8546358]
[1732594345531,12.8546358,236.94,236.87,12.8546358]
[1732594346243,12.8546358,236.92,236.83,27.9959358]
[1732594346411,12.8546358,236.9,236.83,32.2182358]
[1732594347320,12.8546358,236.93,236.86,4.2219]
[1732594347835,12.8546358,236.93,236.85,12.8546358]
[1732594348511,12.8546358,236.91,236.83,27.9959358]
[1732594348713,12.8546358,236.89,236.81,12.8546358]
[1732594348916,12.8546358,236.89,236.81,17.0773358]
[1732594349414,12.8546358,236.91,236.83,12.8546358]
[1732594349820,12.8546358,236.93,236.85,12.8546358]
[1732594350823,12.8546358,236.93,236.85,17.0766358]
[1732594351823,12.8546358,236.91,236.85,4.222]
[1732594352919,12.8546358,236.89,236.82,4.2224]
[1732594354423,17.0757358,236.91,236.83,12.8546358]
[1732594355626,12.8546358,236.91,236.83,12.8546358]
[1732594355948,17.0753358,236.93,236.85,12.8546358]
[1732594356449,12.8546358,236.93,236.85,17.0765358]
[1732594360143,4.2204,236.94,236.87,12.8546358]
[1732594360527,12.8546358,236.93,236.87,4.2216]
[1732594361046,12.8546358,236.95,236.87,17.0762358]
[1732594361346,17.0741358,237.0,236.91,12.8546358]
[1732594361551,12.8546358,236.96,236.89,12.8546358]
[1732594362439,12.8546358,236.96,236.9,4.2211]
[1732594362748,12.8546358,236.94,236.88,16.6181]
[1732594365655,12.8546358,236.92,236.88,16.6181]
[1732594366532,4.2195,236.99,236.88,20.8395]
[1732594366533,12.8546358,236.96,236.88,20.8395]
[1732594367237,12.8546358,236.91,236.85,4.222]
[1732594367446,12.8546358,236.89,236.84,10.2296]
[1732594368557,8.2221925,236.92,236.84,18.4517925]
[1732594368942,8.2221925,236.94,236.86,8.2221925]
[1732594369437,8.2221925,236.92,236.84,18.4517925]
[1732594369838,8.2221925,236.94,236.86,8.2221925]
[1732594370438,8.2221925,236.96,236.88,8.2221925]
[1732594370864,8.2221925,236.96,236.85,4.222]
[1732594370865,8.2221925,236.92,236.85,4.222]
[1732594371172,33.01426,237.0,236.85,4.222]
[1732594371173,8.2221925,236.94,236.85,12.4441925]
[1732594372474,12.84246701,236.94,236.86,12.84246701]
[1732594372987,12.84246701,236.96,236.88,12.84246701]
[1732594373560,12.84246701,236.96,236.89,4.2213]
[1732594373867,12.84246701,236.96,236.88,12.84246701]
[1732594374190,12.84246701,236.94,236.88,4.2214]
[1732594374576,12.84246701,236.92,236.88,4.2214]
[1732594374885,12.84246701,236.92,236.86,12.84246701]
[1732594375094,12.84246701,236.92,236.86,4.2217]
[1732594375285,12.84246701,236.9,236.86,4.2217]
[1732594375587,12.84246701,236.9,236.85,4.222]
[1732594377158,12.84246701,236.92,236.85,4.222]
[1732594377791,12.84246701,236.92,236.86,12.84246701]
[1732594378179,12.84246701,236.94,236.87,4.2217]
[1732594378990,12.84246701,236.92,236.84,18.84986701]
[1732594379180,12.84246701,236.92,236.85,4.2219]
[1732594379594,12.84246701,236.94,236.86,12.84246701]
[1732594379897,12.84246701,236.94,236.85,4.2219]
[1732594381296,12.84246701,236.94,236.86,17.06416701]
[1732594381904,12.84246701,236.92,236.86,4.2217]
[1732594382931,12.84246701,236.92,236.85,4.222]
[1732594384825,12.84246701,236.94,236.85,17.06446701]
[1732594388396,17.06286701,236.94,236.85,17.06446701]
[1732594390716,17.06256701,236.96,236.87,12.84246701]
[1732594391916,12.84246701,236.96,236.88,4.2215]
[1732594392089,4.2199,236.98,236.91,12.84246701]
[1732594392294,8.2154974,237.0,236.92,8.2154974]
[1732594393007,12.4346974,237.01,236.92,8.2154974]
[1732594393615,4.2192,237.01,236.92,12.4361974]
[1732594393921,8.2154974,237.04,236.96,8.2154974]
[1732594394107,12.4341974,237.04,236.96,8.2154974]
[1732594394294,8.2154974,237.02,236.94,14.5976974]
[1732594394696,4.2187,237.04,236.94,14.5976974]
[1732594394908,8.2154974,237.02,236.94,14.5976974]
[1732594395125,8.2154974,237.02,236.95,4.2202]
[1732594395927,10.52814774,237.05,236.96,8.2154974]
[1732594396223,18.74364514,237.05,236.96,8.2154974]
[1732594396412,8.2154974,237.02,236.94,10.6025]
[1732594396857,8.2154974,236.98,236.94,6.3822]
[1732594397030,8.2154974,236.96,236.94,6.3822]
[1732594397950,8.2154974,236.96,236.93,15.9569]
[1732594399268,0.12549,237.04,236.89,6.2745]
[1732594399446,8.2154974,236.94,236.89,6.2745]
[1732594399640,8.2154974,236.96,236.89,10.4958]
[1732594399885,23.776884,237.02,236.89,18.7112974]
[1732594400154,8.2154974,236.96,236.89,18.7112974]
[1732594402059,4.2194,237.0,236.89,18.7112974]
[1732594402378,8.2154974,236.97,236.89,18.7112974]
[1732594403365,8.2154974,236.99,236.91,8.2154974]
[1732594404266,8.2154974,236.97,236.89,18.7112974]
[1732594405677,17.22185332,237.03,236.93,8.2154974]
[1732594405847,12.4343974,237.03,236.93,8.2154974]
[1732594406053,8.2154974,237.01,236.92,24.2208]
[1732594406382,8.2154974,236.99,236.9,4.221]
[1732594406876,8.2154974,236.97,236.9,4.221]
[1732594407064,8.2154974,236.97,236.89,6.2745]
[1732594407392,8.2154974,236.95,236.89,6.2745]
[1732594407876,8.2154974,236.95,236.89,10.4958]
[1732594408971,8.2154974,236.95,236.89,6.2745]
[1732594409173,8.2154974,236.93,236.89,6.2745]
[1732594409346,8.2154974,236.91,236.87,15.3165]
[1732594410193,8.2154974,236.89,236.84,6.5409]
[1732594410375,8.2154974,236.86,236.81,16.5691]
[1732594410582,43.776884,236.92,236.78,10.7641]
[1732594410771,43.776884,236.92,236.78,6.5409]
[1732594410772,8.2154974,236.82,236.78,6.5409]
[1732594411385,8.2154974,236.8,236.76,16.5691]
[1732594411675,8.2154974,236.84,236.76,24.7845974]
[1732594412291,8.2154974,236.82,236.76,16.5691]
[1732594413990,12.4377974,236.84,236.76,24.7845974]
[1732594415842,8.2154974,236.82,236.76,16.5691]
[1732594416065,8.2154974,236.8,236.76,16.5691]
[1732594416362,8.2154974,236.82,236.76,16.5691]
[1732594416937,8.2154974,236.8,236.72,6.5409]
[1732594417439,8.2154974,236.78,236.7,16.5691]
[1732594417662,8.2154974,236.79,236.71,8.2154974]
[1732594417966,8.2154974,236.79,236.72,8.2154974]
[1732594418667,12.4383974,236.81,236.74,8.2154974]
[1732594419374,8.2154974,236.85,236.77,8.2154974]
[1732594419557,8.2154974,236.85,236.78,8.2154974]
[1732594420069,12.4376974,236.85,236.77,8.2154974]
[1732594420265,8.2154974,236.83,236.75,12.4391974]
[1732594421454,12.4377974,236.84,236.76,8.2154974]
[1732594421768,8.2154974,236.85,236.77,8.2154974]
[1732594421986,8.2154974,236.88,236.81,8.2154974]
[1732594422270,4.2215,236.89,236.82,8.2154974]
[1732594423159,8.2154974,236.88,236.81,8.2154974]
[1732594424275,4.2215,236.88,236.81,12.84846905]
[1732594425577,12.84846905,236.87,236.81,12.84846905]
[1732594426081,23.776884,236.86,236.79,12.84846905]
[1732594426257,4.222,236.85,236.79,12.84846905]
[1732594426574,17.07026905,236.87,236.79,12.84846905]
[1732594427460,23.776884,236.86,236.79,12.84846905]
[1732594428189,40.84725305,236.86,236.79,12.84846905]
[1732594429762,27.998784,236.86,236.79,12.84846905]
[1732594431378,40.84725305,236.86,236.76,6.5409]
[1732594431586,40.84725305,236.86,236.78,12.84846905]
[1732594431951,40.84725305,236.86,236.77,4.2235]
[1732594432278,40.84725305,236.86,236.78,12.84846905]
[1732594432579,17.07006905,236.88,236.8,12.84846905]
[1732594433952,4.2213,236.9,236.83,12.84846905]
[1732594435773,12.84846905,236.89,236.8,4.2229]
[1732594435956,12.84846905,236.89,236.81,12.84846905]
[1732594436363,17.06946905,236.91,236.83,12.84846905]
[1732594436561,23.776884,236.9,236.83,12.84846905]
[1732594436978,4.2213,236.89,236.83,12.84846905]
[1732594437376,17.06926905,236.93,236.85,12.84846905]
[1732594439262,17.06926905,236.93,236.85,17.07046905]
[1732594440082,4.2208,236.93,236.87,12.84846905]